bitfinex-derivatives/quotes_ETHF0:USTF0_20241020
["timestamp","ask_amount","ask_price","bid_price","bid_amount"]
[1729458912887,4.44583559,2714.6,2714.5,2.19884729]
[1729458913199,3.36452394,2714.6,2714.5,2.42925542]
[1729458913399,3.36452394,2714.6,2714.5,1.96837741]
[1729458913599,2.99609394,2714.6,2714.5,0.69134688]
[1729458913804,2.99609394,2714.6,2714.3,0.96249152]
[1729458913805,8.13746512,2714.6,2714.3,0.96249152]
[1729458913994,8.13746512,2714.6,2714.1,0.96249152]
[1729458913995,0.36848,2714.2,2714.1,0.96249152]
[1729458914195,0.36848,2714.2,2713.7,5.13358297]
[1729458914196,7.12512394,2714.2,2713.7,4.17029152]
[1729458914490,3.34995632,2714.3,2713.4,0.3936]
[1729458914491,0.36858,2713.5,2713.4,0.3936]
[1729458914696,1.81772285,2713.5,2713.4,0.5763868]
[1729458915005,5.50332285,2713.5,2713.4,0.5763868]
[1729458915199,0.36863,2713.2,2713.0,0.96249152]
[1729458915501,5.02570924,2713.3,2713.0,0.36864]
[1729458915695,1.44929924,2713.3,2713.2,0.36862]
[1729458915892,2.74159898,2713.5,2713.1,0.36862]
[1729458915893,1.81789924,2713.4,2713.1,0.36862]
[1729458916094,1.44929924,2713.4,2713.2,0.36862]
[1729458916302,2.62707924,2713.5,2713.2,0.36862]
[1729458916489,0.8092,2713.5,2712.8,1.38179152]
[1729458916695,2.25849924,2713.5,2712.8,0.4193]
[1729458916893,2.25849924,2713.5,2712.9,0.46113827]
[1729458917098,2.25849924,2713.5,2713.3,0.3686]
[1729458917400,0.8092,2713.5,2713.3,0.3686]
[1729458917805,1.17778,2713.5,2713.3,0.3686]
[1729458917991,0.8092,2713.5,2713.3,0.3686]
[1729458918393,0.8092,2713.5,2712.8,2.30348152]
[1729458918598,0.36859,2713.4,2713.2,0.36862]
[1729458919103,0.8092,2713.5,2712.8,1.38179152]
[1729458919306,0.36859,2713.4,2713.1,0.36862]
[1729458919509,0.8092,2713.5,2712.8,1.38179152]
[1729458919510,0.8092,2713.5,2712.9,0.36865]
[1729458919712,0.36864,2713.1,2712.8,0.36867]
[1729458920007,0.3853,2713.0,2712.8,0.36867]
[1729458920303,0.3853,2713.0,2712.7,0.3883]
[1729458920492,0.36866,2712.9,2712.7,0.75698]
[1729458920697,4.35645,2713.0,2712.7,0.75698]
[1729458921403,3.9878,2713.0,2712.7,0.3883]
[1729458921698,3.9878,2713.0,2712.5,0.36871]
[1729458921699,0.36867,2712.8,2712.5,0.36871]
[1729458921901,3.9878,2713.0,2712.4,0.8274]
[1729458922105,0.36867,2712.9,2712.6,0.36869]
[1729458922408,0.36866,2712.9,2712.6,0.3687]
[1729458922710,0.36866,2712.9,2712.4,0.78633]
[1729458922895,0.36869,2712.7,2712.4,0.78633]
[1729458923303,0.3918,2712.8,2712.4,0.78633]
[1729458923304,0.76048,2712.8,2712.5,0.36871]
[1729458923807,0.36869,2712.7,2712.5,0.36871]
[1729458924003,0.3918,2712.8,2712.5,0.36871]
[1729458924207,0.36869,2712.7,2712.4,0.78632]
[1729458924605,0.36869,2712.7,2712.5,0.36871]
[1729458924809,0.3918,2712.8,2712.4,0.4176]
[1729458925110,0.3918,2712.8,2712.4,0.78632]
[1729458925111,0.3687,2712.6,2712.4,0.78632]
[1729458925298,0.36869,2712.7,2712.4,0.78632]
[1729458925902,0.36869,2712.7,2712.3,3.2078]
[1729458925903,0.36872,2712.5,2712.3,3.2078]
[1729458926109,0.4071,2712.4,2712.3,3.57654]
[1729458926707,0.4071,2712.4,2712.3,3.2078]
[1729458927002,0.4071,2712.4,2712.1,0.3942]
[1729458927003,0.77583,2712.4,2712.1,0.3942]
[1729458927301,3.6149,2712.4,2712.0,0.411]
[1729458927508,3.6149,2712.4,2712.3,0.36874]
[1729458928407,0.36876,2712.2,2712.0,0.36878]
[1729458928604,1.17705,2712.3,2712.1,0.36877]
[1729458928912,0.8083,2712.3,2712.0,0.36878]
[1729458929202,1.17705,2712.3,2712.0,0.36878]
[1729458929511,0.36875,2712.2,2711.9,0.78969]
[1729458929700,0.36877,2712.1,2711.9,0.78969]
[1729458930305,0.36877,2712.1,2711.9,0.4209]
[1729458930306,3.57658,2712.1,2711.9,0.4209]
[1729458930607,3.2078,2712.1,2711.9,0.4209]
[1729458930909,3.57657,2712.1,2711.9,0.78969]
[1729458931505,3.2078,2712.1,2711.9,0.78969]
[1729458932204,3.57657,2712.1,2711.9,0.78969]
[1729458932506,3.57657,2712.1,2711.7,0.36882]
[1729458932507,0.3688,2711.9,2711.7,0.36882]
[1729458932700,3.6286,2711.8,2711.6,0.36883]
[1729458932902,0.36884,2711.6,2711.4,0.36886]
[1729458933108,0.4118,2711.7,2711.3,0.3867]
[1729458933304,0.36887,2711.4,2711.2,0.36889]
[1729458933503,3.2078,2711.5,2711.2,0.36889]
[1729458933504,0.4208,2711.3,2711.2,0.36889]
[1729458934399,0.8256,2711.7,2710.9,0.4189]
[1729458934603,0.78477,2711.4,2711.2,0.36889]
[1729458935009,0.4159,2711.4,2711.3,0.36888]
[1729458936103,0.4159,2711.4,2711.2,0.36888]
[1729458936405,0.4159,2711.4,2711.3,0.36888]
[1729458937203,0.4159,2711.4,2710.9,0.4189]
[1729458937506,0.4159,2711.4,2711.2,0.36888]
[1729458937507,0.78477,2711.4,2711.2,0.36888]
[1729458938212,0.4159,2711.4,2710.9,0.4189]
[1729458938413,0.78477,2711.4,2711.2,0.36889]
[1729458938615,0.36888,2711.3,2711.1,0.3689]
[1729458939111,6.8966,2711.2,2710.4,4.13029]
[1729458939311,0.36893,2711.0,2710.8,0.36894]
[1729458939802,0.76834,2710.9,2710.7,0.36895]
[1729458940008,0.76833,2710.9,2710.7,0.36895]
[1729458940209,0.3994,2710.9,2710.6,0.3923]
[1729458940410,0.3994,2710.9,2710.8,0.36895]
[1729458940808,0.3994,2710.9,2710.4,4.0092]
[1729458941008,0.76834,2710.9,2710.7,0.36895]
[1729458941617,0.3994,2710.9,2710.4,4.0092]
[1729458941820,0.3994,2710.9,2710.8,0.36895]
[1729458942116,0.4177,2711.1,2710.8,0.36895]
[1729458942316,0.36892,2711.0,2710.8,0.36895]
[1729458943712,0.36892,2711.0,2710.8,0.36894]
[1729458944214,0.36895,2710.8,2710.6,0.36896]
[1729458944417,0.4177,2711.1,2710.6,0.36896]
[1729458944616,0.36895,2710.8,2710.6,0.36896]
[1729458944814,0.4082,2710.7,2710.6,0.36896]
[1729458945912,0.75582,2711.0,2710.4,4.52878]
[1729458946113,1.17322,2711.0,2710.4,4.52878]
[1729458946316,1.17322,2711.0,2710.8,0.36894]
[1729458946714,1.17322,2711.0,2710.4,4.52878]
[1729458947019,0.8043,2711.0,2710.9,0.36893]
[1729458952022,3.2078,2711.2,2711.1,0.3689]
[1729458952223,3.9978,2711.5,2711.3,0.36888]
[1729458952427,3.9978,2711.5,2710.9,0.8127]
[1729458952623,0.36889,2711.3,2711.1,0.3689]
[1729458952826,0.36889,2711.3,2710.9,0.8127]
[1729458952827,0.3955,2711.2,2710.9,0.4097]
[1729458953031,0.75832,2711.1,2710.9,0.36893]
[1729458953233,0.3894,2711.1,2710.9,0.36893]
[1729458953433,0.36892,2711.0,2710.9,0.36893]
[1729458953623,0.3894,2711.1,2710.5,0.403]
[1729458953829,0.75831,2711.1,2711.0,0.36892]
[1729458954035,0.36894,2710.9,2710.2,1.2916]
[1729458954236,3.57675,2710.8,2710.6,0.36896]
[1729458954535,3.57675,2710.8,2710.6,0.36897]
[1729458954536,0.41,2710.7,2710.6,0.36897]
[1729458954738,0.41,2710.7,2710.5,0.36898]
[1729458954739,0.77896,2710.7,2710.5,0.36898]
[1729458954929,0.3894,2710.6,2710.5,0.36898]
[1729458956233,0.75838,2710.6,2710.4,0.36899]
[1729458956629,0.75838,2710.6,2710.5,0.36899]
[1729458956831,0.36899,2710.5,2710.4,0.36899]
[1729458957028,3.2078,2710.5,2710.4,0.36899]
[1729458957227,3.57679,2710.5,2710.4,0.36899]
[1729458957840,3.2078,2710.5,2710.4,0.36899]
[1729458959942,1.15418,2710.6,2710.5,0.36899]
[1729458960152,1.15418,2710.6,2710.1,1.73529]
[1729458960642,0.36899,2710.5,2710.1,0.8127]
[1729458960843,0.36903,2710.2,2709.9,3.2078]
[1729458961047,3.2078,2710.1,2709.8,0.3882]
[1729458961249,0.3931,2710.0,2709.9,0.36906]
[1729458964754,0.3931,2710.0,2709.8,0.75727]
[1729458965151,0.76216,2710.0,2709.8,0.75727]
[1729458965352,0.36909,2709.8,2709.6,0.3691]
[1729458966357,0.3931,2710.0,2709.4,3.2078]
[1729458966545,0.36909,2709.8,2709.6,0.3691]
[1729458967056,0.4072,2709.7,2709.6,0.3691]
[1729458968248,3.615,2709.7,2709.6,0.3691]
[1729458970059,7.3054,2709.7,2709.6,0.3691]
[1729458971755,3.615,2709.7,2709.6,0.3691]
[1729458972858,0.4072,2709.7,2709.6,0.3691]
[1729458973456,3.2078,2709.8,2709.3,0.3992]
[1729458973751,3.2078,2709.8,2709.7,0.36909]
[1729458975956,0.3931,2710.0,2709.9,0.36907]
[1729458977663,3.6147,2710.1,2710.0,0.36905]
[1729458980454,3.2078,2710.1,2710.0,0.36905]
[1729458981453,0.4163,2710.4,2710.0,0.36905]
[1729458981454,3.2078,2710.6,2710.0,3.6896]
[1729458981649,3.2078,2710.6,2710.5,0.36898]
[1729458981950,3.2078,2710.9,2710.8,0.36895]
[1729458982360,0.4163,2711.1,2710.4,0.92248]
[1729458982559,0.4163,2711.1,2711.0,0.36892]
[1729458984564,3.6129,2711.2,2710.8,0.3918]
[1729458984565,3.2078,2711.2,2711.1,0.3689]
[1729458994463,3.2078,2711.2,2711.1,4.0577]
[1729458995362,0.4076,2711.8,2711.7,0.36882]
[1729458995766,0.77641,2711.8,2711.7,0.36882]
[1729458996161,0.4076,2711.8,2711.7,0.36882]
[1729458998376,0.4076,2711.8,2711.4,0.3884]
[1729458998377,0.77641,2711.8,2711.6,0.36882]
[1729458998569,0.4076,2711.8,2711.7,0.36882]
[1729458999275,0.4076,2711.8,2711.4,0.3884]
[1729458999464,0.4076,2711.8,2711.7,0.36882]
[1729459005078,0.4076,2711.8,2711.1,0.92226]
[1729459005079,0.4076,2711.8,2711.5,0.36884]
[1729459005380,3.2078,2711.6,2711.5,0.36885]
[1729459005982,3.57664,2711.6,2711.5,0.36885]
[1729459006476,7.26464,2711.6,2711.4,0.36885]
[1729459006676,3.57664,2711.6,2711.4,0.36885]
[1729459007175,3.2078,2711.6,2711.4,0.36885]
[1729459007474,3.2078,2711.6,2711.5,0.36885]
[1729459007979,6.8958,2711.6,2711.5,0.36885]
[1729459008180,3.2078,2711.6,2711.5,0.36885]
[1729459008782,3.57665,2711.6,2711.4,0.36886]
[1729459008973,0.36885,2711.5,2711.4,0.36886]
[1729459009280,0.36885,2711.5,2711.3,0.36887]
[1729459009484,0.4,2711.4,2711.3,0.36887]
[1729459011473,0.76613,2711.7,2711.5,0.36884]
[1729459011674,1.16613,2711.7,2711.5,0.36884]
[1729459011984,0.36885,2711.5,2711.3,0.36887]
[1729459012168,3.57665,2711.5,2711.3,0.36887]
[1729459012375,3.57666,2711.5,2711.3,0.36887]
[1729459012872,0.36887,2711.4,2711.2,0.36888]
[1729459013079,0.4161,2711.3,2711.2,0.36888]
[1729459017877,0.36889,2711.2,2711.1,0.3689]
[1729459018079,4.382,2711.2,2710.7,0.9224]
[1729459018383,4.382,2711.2,2711.1,0.3689]
[1729459019781,4.382,2711.2,2711.0,0.36891]
[1729459019782,0.36891,2711.1,2711.0,0.36891]
[1729459019988,4.382,2711.2,2711.0,0.36891]
[1729459020189,0.3689,2711.1,2711.0,0.36891]
[1729459020384,4.97384266,2711.2,2710.6,0.36896]
[1729459020590,4.97384266,2711.2,2710.5,0.3875]
[1729459020591,0.36896,2710.7,2710.5,0.36898]
[1729459020777,1.2462,2710.6,2710.5,0.36898]
[1729459021390,1.2462,2710.6,2710.2,0.4192]
[1729459021585,1.61518,2710.6,2710.2,0.4192]
[1729459021786,1.2462,2710.6,2710.2,0.4192]
[1729459021991,0.8376,2710.6,2710.5,0.36899]
[1729459022988,1.20657,2710.6,2710.5,0.36899]
[1729459024488,0.36895,2710.8,2710.7,0.36895]
[1729459025091,0.36896,2710.7,2710.6,0.36897]
[1729459025295,4.16854266,2710.9,2710.6,0.36897]
[1729459025497,0.36895,2710.8,2710.6,0.36897]
[1729459025686,0.36895,2710.8,2710.7,0.36896]
[1729459026193,4.16854266,2710.9,2710.7,0.36896]
[1729459026497,4.16854266,2710.9,2710.3,0.92254]
[1729459026695,4.53747266,2710.9,2710.3,0.92254]
[1729459026899,4.53747266,2710.9,2710.7,0.36895]
[1729459027291,0.96074266,2710.8,2710.7,0.36895]
[1729459028586,0.96074266,2710.8,2710.2,1.38169152]
[1729459028793,1.32969266,2710.8,2710.6,0.36897]
[1729459029096,0.4079,2710.7,2710.6,0.36897]
[1729459032299,0.96074266,2710.8,2710.2,1.38169152]
[1729459032497,0.96074266,2710.9,2710.8,0.36895]
[1729459033098,3.42421924,2711.0,2710.8,0.36895]
[1729459033596,0.96537025,2710.9,2710.8,0.36895]
[1729459033797,0.96534632,2710.9,2710.8,0.36895]
[1729459034201,0.96534632,2710.9,2710.7,0.36895]
[1729459034202,0.36893,2710.9,2710.7,0.36895]
[1729459034404,1.33423741,2710.9,2710.7,0.36895]
[1729459034595,0.96530741,2710.9,2710.8,0.36895]
[1729459034900,0.96526551,2710.9,2710.8,0.36895]
[1729459037896,3.11731898,2711.0,2710.8,0.36895]
[1729459039303,3.11731898,2711.0,2710.5,0.4202]
[1729459039304,3.2078,2710.9,2710.5,0.4202]
[1729459039509,0.96495864,2710.8,2710.7,0.36896]
[1729459039703,4.17275864,2710.9,2710.8,0.36895]
[1729459040807,0.96495864,2710.9,2710.8,0.36895]
[1729459042295,0.96495864,2711.0,2710.9,0.36893]
[1729459045899,0.96495864,2711.2,2711.1,0.3689]
[1729459048503,1.44743797,2711.2,2711.1,0.3689]
[1729459050316,1.93239898,2711.3,2711.1,0.3689]
[1729459050604,5.14019898,2711.3,2711.1,0.3689]
[1729459051407,1.93239898,2711.3,2710.8,0.92237]
[1729459051606,0.96603412,2711.0,2710.9,0.36893]
[1729459056321,0.96603412,2711.1,2711.0,0.36892]
[1729459056805,0.96603412,2711.1,2711.0,4.05772]
[1729459058903,1.44905118,2711.2,2711.0,3.6888]
[1729459059105,0.96655741,2711.1,2711.0,0.36892]
[1729459059304,1.44905118,2711.2,2711.1,0.3689]
[1729459060919,1.93239898,2711.2,2711.1,0.3689]
[1729459062424,1.45013415,2711.2,2711.1,4.15025163]
[1729459062620,1.45013415,2711.2,2711.1,4.63451455]
[1729459062825,0.96665973,2711.2,2711.1,4.74987468]
[1729459063015,0.96665973,2711.2,2711.1,4.63451176]
[1729459063218,0.96665973,2711.2,2711.1,4.51915163]
[1729459063615,1.45013415,2711.3,2711.2,0.36889]
[1729459063616,0.96665973,2711.3,2711.2,0.36889]
[1729459063817,0.96665973,2711.3,2711.2,4.86319]
[1729459064026,0.96665973,2711.3,2711.2,5.32461602]
[1729459064228,0.96665973,2711.3,2711.2,4.86319]
[1729459065518,0.96665973,2711.4,2711.3,0.36888]
[1729459065728,1.45013415,2711.5,2711.4,0.36886]
[1729459067924,0.96592047,2711.5,2711.2,1.2195]
[1729459068120,0.96592047,2711.5,2711.4,0.36886]
[1729459071427,1.37072047,2711.6,2711.5,0.36885]
[1729459076138,1.85493415,2711.6,2711.5,0.36885]
[1729459078032,0.4048,2711.6,2711.5,0.36885]
[1729459080529,2.33719898,2711.6,2711.5,0.36885]
[1729459081835,0.4048,2711.6,2711.5,0.36885]
[1729459083036,1.37063146,2711.6,2711.5,0.36885]
[1729459084535,0.4048,2711.6,2711.5,0.36885]
[1729459084731,1.37082678,2711.6,2711.5,0.36885]
[1729459085545,0.4048,2711.6,2711.5,0.36885]
[1729459086546,1.85354719,2711.6,2711.5,0.36885]
[1729459089049,1.83884719,2711.7,2711.6,0.36884]
[1729459089249,1.35638347,2711.7,2711.6,0.76254]
[1729459090147,0.3901,2711.7,2711.6,1.22391642]
[1729459090342,0.3901,2711.7,2711.6,1.22391495]
[1729459090944,0.96628347,2711.8,2711.7,0.36882]
[1729459091139,1.44874719,2711.8,2711.7,0.36882]
[1729459091344,1.44874719,2711.8,2711.7,4.05682]
[1729459092241,1.44874719,2711.8,2711.7,0.36882]
[1729459094747,1.44874719,2711.8,2711.7,4.05682]
[1729459094948,0.96588494,2711.8,2711.7,4.1063]
[1729459095145,0.96588494,2711.9,2711.8,0.36881]
[1729459095361,0.3991,2712.0,2711.9,0.3688]
[1729459095362,1.36498494,2712.0,2711.9,0.3688]
[1729459097045,0.96588494,2712.0,2711.9,0.3688]
[1729459097254,0.96588494,2712.1,2712.0,0.36878]
[1729459097448,1.44874719,2712.2,2712.1,0.36877]
[1729459098245,0.9653727,2712.2,2712.1,0.36877]
[1729459098447,1.7463727,2712.3,2712.2,0.36875]
[1729459104048,0.781,2712.3,2712.2,0.36875]
[1729459104446,1.7463727,2712.3,2712.2,0.36875]
[1729459105049,0.3845,2712.3,2712.2,0.36875]
[1729459105250,0.3845,2712.3,2712.2,4.05595]
[1729459106153,1.3498727,2712.3,2712.2,4.05595]
[1729459107162,1.3498727,2712.3,2712.2,0.36875]
[1729459109254,0.3845,2712.3,2712.2,0.36875]
[1729459109460,1.3498727,2712.3,2712.2,0.36875]
[1729459111159,0.3845,2712.3,2712.2,0.36875]
[1729459115762,0.3845,2712.3,2712.2,0.77635]
[1729459125669,0.3845,2712.3,2712.2,1.23760839]
[1729459125867,0.3845,2712.3,2712.2,0.77635]
[1729459127363,0.3845,2712.3,2712.2,1.23761633]
[1729459128370,1.3498727,2712.3,2712.2,1.23761633]
[1729459130570,1.3498727,2712.3,2712.2,1.23760509]
[1729459130768,1.3498727,2712.3,2712.2,1.23761476]
[1729459130969,1.3498727,2712.3,2712.2,0.77635]
[1729459131266,1.3500253,2712.3,2712.2,0.77635]
[1729459132162,0.3845,2712.3,2712.2,0.77635]
[1729459132478,1.83324719,2712.3,2712.2,0.77635]
[1729459135068,0.3845,2712.3,2712.2,0.77635]
[1729459136470,0.3845,2712.3,2712.2,1.23760993]
[1729459136471,1.3512376,2712.3,2712.2,1.23760993]
[1729459137768,1.3512376,2712.3,2712.2,2.20010145]
[1729459137967,1.3512376,2712.3,2712.2,1.23760993]
[1729459138178,0.3845,2712.3,2712.2,2.20010145]
[1729459138367,0.3845,2712.3,2712.2,2.93811372]
[1729459138569,0.3845,2712.3,2712.2,3.05342626]
[1729459139076,1.8346064,2712.3,2712.2,3.05342626]
[1729459139376,1.8346064,2712.3,2712.2,3.35324402]
[1729459140171,1.8346064,2712.3,2712.2,4.40672548]
[1729459140974,1.8346064,2712.3,2712.2,4.40671569]
[1729459141280,1.8346064,2712.3,2712.2,3.55952747]
[1729459141480,1.8346064,2712.3,2712.2,4.75879016]
[1729459141972,1.8346064,2712.3,2712.2,6.2025028]
[1729459143374,0.3845,2712.3,2712.2,5.72423]
[1729459143582,2.76421586,2712.3,2712.2,3.70531849]
[1729459144171,4.44044,2712.3,2712.2,1.02876849]
[1729459144379,4.60909,2712.2,2711.5,0.96543984]
[1729459144674,2.78931559,2711.6,2711.4,0.36886]
[1729459144881,3.2078,2711.7,2711.4,0.36886]
[1729459144882,2.42046559,2711.5,2711.4,0.36886]
[1729459145277,2.42046559,2711.6,2711.5,0.36885]
[1729459146285,5.99708559,2711.7,2711.5,0.36884]
[1729459146982,2.42046559,2711.7,2711.2,0.801]
[1729459147178,2.42046559,2711.7,2711.6,0.36884]
[1729459147375,1.93298889,2711.8,2711.6,0.36884]
[1729459147580,1.93298889,2711.8,2711.7,1.20652]
[1729459147783,1.93298889,2711.9,2711.8,0.36881]
[1729459149699,5.62018889,2711.9,2711.5,0.4168]
[1729459149991,2.19888889,2711.8,2711.7,0.36881]
[1729459150292,2.19801175,2711.8,2711.7,0.36881]
[1729459150497,5.77176158,2711.8,2711.7,0.36881]
[1729459150792,5.40295158,2711.8,2711.7,0.36881]
[1729459152290,1.71495158,2711.8,2711.7,0.36881]
[1729459153195,0.2659,2711.8,2711.7,0.36881]
[1729459153401,1.71495158,2711.8,2711.7,0.36881]
[1729459154097,0.2659,2711.8,2711.7,0.36881]
[1729459154295,1.23135449,2711.8,2711.7,0.36881]
[1729459155385,0.36882,2711.7,2711.6,0.36883]
[1729459155797,0.96545449,2711.7,2711.6,0.36883]
[1729459156197,1.60017449,2711.8,2711.6,0.36883]
[1729459156393,1.60017449,2711.8,2711.4,0.4149]
[1729459156598,1.60017449,2711.8,2711.7,0.36882]
[1729459156897,1.23135449,2711.8,2711.7,0.36882]
[1729459157097,4.91935449,2711.8,2711.7,0.36882]
[1729459158594,5.28816449,2711.8,2711.7,0.36882]
[1729459159195,4.91935449,2711.8,2711.7,0.36882]
[1729459159499,3.9539,2711.8,2711.7,0.36882]
[1729459159701,4.91935449,2711.8,2711.7,0.36882]
[1729459159893,3.9539,2711.8,2711.7,0.36882]
[1729459161704,4.32272,2711.8,2711.6,0.36882]
[1729459161998,0.63472,2711.8,2711.4,0.4149]
[1729459162203,0.63472,2711.8,2711.7,0.36882]
[1729459162799,4.32272,2711.8,2711.7,0.36882]
[1729459163098,0.63472,2711.8,2711.7,0.36882]
[1729459163399,0.2659,2711.8,2711.7,0.36882]
[1729459163997,0.2659,2711.8,2711.4,0.4149]
[1729459164199,0.63472,2711.8,2711.6,0.36883]
[1729459164608,0.63472,2711.8,2711.7,0.36882]
[1729459164996,0.2659,2711.8,2711.7,0.36882]
[1729459165699,1.71495158,2711.8,2711.7,0.36882]
[1729459166007,0.2659,2711.8,2711.7,0.36882]
[1729459166207,1.71495158,2711.8,2711.7,0.36882]
[1729459166903,0.2659,2711.8,2711.7,0.36882]
[1729459169202,1.71495158,2711.8,2711.7,0.36882]
[1729459170709,1.44905158,2711.8,2711.7,0.36882]
[1729459173112,1.81786158,2711.8,2711.7,0.36882]
[1729459173309,1.44905158,2711.8,2711.7,0.36882]
[1729459173710,0.96472942,2711.8,2711.6,0.36884]
[1729459174008,0.96472942,2711.8,2711.7,0.36882]
[1729459175106,1.33353942,2711.8,2711.7,0.36882]
[1729459175411,0.96472942,2711.8,2711.7,0.36882]
[1729459179614,1.33353942,2711.8,2711.7,0.36882]
[1729459180319,0.36881,2711.8,2711.7,0.36882]
[1729459180613,0.9653623,2711.8,2711.7,0.36882]
[1729459180807,1.81785158,2711.9,2711.8,0.36881]
[1729459180808,2.30091175,2711.9,2711.8,0.36881]
[1729459181207,5.98811175,2711.9,2711.8,0.36881]
[1729459183211,3.6872,2711.9,2711.5,0.3853]
[1729459183416,0.9658521,2711.6,2711.5,0.75415]
[1729459184314,1.44877815,2711.7,2711.6,0.36884]
[1729459184614,1.9317042,2711.8,2711.7,0.36882]
[1729459187118,2.78926559,2711.9,2711.5,0.3853]
[1729459187318,1.45000668,2711.6,2711.5,0.75415]
[1729459188219,1.93334224,2711.7,2711.6,0.36884]
[1729459188719,2.42046559,2711.8,2711.5,0.3853]
[1729459188720,2.30216224,2711.8,2711.5,0.3853]
[1729459188917,1.45060743,2711.6,2711.5,0.3853]
[1729459189219,1.45060743,2711.6,2711.5,1.83493888]
[1729459190219,1.93334224,2711.6,2711.5,2.1091361]
[1729459191020,1.93334224,2711.6,2711.5,2.1091344]
[1729459191216,1.93334224,2711.6,2711.5,3.55284704]
[1729459191420,1.93334224,2711.6,2711.5,2.1091344]
[1729459191927,1.93334224,2711.6,2711.5,2.68588029]
[1729459192223,1.93334224,2711.6,2711.5,2.68588096]
[1729459192414,1.93334224,2711.6,2711.5,2.68588329]
[1729459192613,1.93334224,2711.6,2711.5,4.12959593]
[1729459193016,1.93334224,2711.6,2711.5,2.68588329]
[1729459194224,1.93334224,2711.6,2711.5,4.3143613]
[1729459194616,1.93334224,2711.6,2711.5,4.31436151]
[1729459195721,2.42046559,2711.6,2711.5,2.78230977]
[1729459198226,2.42046559,2711.6,2711.5,2.32091098]
[1729459198424,2.42046559,2711.6,2711.5,2.78230716]
[1729459199015,2.42046559,2711.6,2711.5,2.48239965]
[1729459201522,2.42046559,2711.6,2711.5,2.02100435]
[1729459201726,2.42046559,2711.6,2711.5,2.59775136]
[1729459203827,1.93758081,2711.6,2711.5,4.13030003]
[1729459204328,1.93758081,2711.6,2711.5,4.1303004]
[1729459204931,1.93758081,2711.6,2711.5,4.13029877]
[1729459207131,1.93758081,2711.6,2711.5,4.31485772]
[1729459207323,1.93758081,2711.6,2711.5,4.3156415]
[1729459207723,1.93758081,2711.6,2711.5,4.31564439]
[1729459210338,1.93758081,2711.6,2711.5,4.32523547]
[1729459211331,1.93758081,2711.6,2711.5,2.87193175]
[1729459211528,1.93758081,2711.6,2711.5,3.86382746]
[1729459211734,1.93758081,2711.6,2711.5,2.87193238]
[1729459211934,1.93758081,2711.6,2711.5,4.32523721]
[1729459212337,1.93758081,2711.6,2711.5,4.32622544]
[1729459213542,1.93758081,2711.6,2711.5,4.32618631]
[1729459213742,1.93758081,2711.6,2711.5,4.32621671]
[1729459214040,1.93758081,2711.6,2711.5,4.32621196]
[1729459214342,1.93758081,2711.6,2711.5,2.87291395]
[1729459214639,1.93758081,2711.6,2711.5,2.27310253]
[1729459214934,1.93758081,2711.6,2711.5,2.87290878]
[1729459215129,1.93758081,2711.6,2711.5,2.87290944]
[1729459217038,1.93758081,2711.6,2711.5,1.81535544]
[1729459217240,1.93758081,2711.6,2711.5,2.87287541]
[1729459218140,1.93758081,2711.6,2711.5,2.11157575]
[1729459218340,1.93758081,2711.6,2711.5,3.33425915]
[1729459218942,2.42046559,2711.7,2711.6,0.36884]
[1729459219158,2.42046559,2711.7,2711.6,2.39878499]
[1729459221647,2.42046559,2711.7,2711.6,1.33758579]
[1729459221841,2.42046559,2711.7,2711.6,1.93739333]
[1729459222142,2.42046559,2711.7,2711.6,1.45293339]
[1729459225943,2.42046559,2711.8,2711.7,0.36882]
[1729459226249,2.42046559,2711.8,2711.7,1.452793]
[1729459227548,2.78927559,2711.8,2711.7,1.452793]
[1729459228049,2.78927559,2711.8,2711.7,0.4841676]
[1729459228249,2.78927559,2711.8,2711.7,0.36882]
[1729459228444,2.42046559,2711.8,2711.7,0.36882]
[1729459229162,2.42046559,2711.8,2711.7,0.48416866]
[1729459229336,2.42046559,2711.8,2711.7,0.59951739]
[1729459232436,2.42046559,2711.8,2711.7,0.48416866]
[1729459232644,2.42046559,2711.8,2711.7,0.59951758]
[1729459232645,2.78927559,2711.8,2711.7,0.59951758]
[1729459232840,2.78927559,2711.8,2711.7,0.36882]
[1729459233040,2.78927559,2711.8,2711.7,0.59951754]
[1729459235745,2.42046559,2711.8,2711.7,0.99721754]
[1729459235945,2.78927559,2711.8,2711.7,0.99721754]
[1729459236350,2.78927559,2711.8,2711.7,0.88186876]
[1729459236553,2.78927559,2711.8,2711.6,0.9686254]
[1729459236554,3.688,2711.8,2711.6,0.9686254]
[1729459236746,14.0007272,2711.7,2711.1,0.9686254]
[1729459236949,0.3689,2711.1,2711.0,0.9686254]
[1729459237148,2.51909844,2711.1,2710.6,0.9686254]
[1729459237354,1.93339234,2710.7,2710.4,0.9686254]
[1729459237549,1.93339234,2710.7,2710.2,2.22433875]
[1729459237550,5.51012091,2710.5,2710.2,1.7398454]
[1729459237856,1.81895871,2710.3,2710.1,0.9686254]
[1729459238157,1.44994871,2710.2,2710.1,0.9686254]
[1729459238351,0.96548258,2710.3,2710.0,1.16415]
[1729459238545,0.96548258,2710.3,2710.1,0.36904]
[1729459238746,0.96548258,2710.2,2710.1,0.36904]
[1729459239251,0.96548258,2710.3,2710.0,1.16415]
[1729459240752,1.33449258,2710.3,2710.0,1.16415]
[1729459240955,0.96548258,2710.2,2710.1,0.36904]
[1729459241145,1.33449258,2710.3,2710.1,0.36904]
[1729459241949,0.96548258,2710.3,2710.1,0.36904]
[1729459242155,1.33449258,2710.3,2710.1,0.36904]
[1729459242455,0.36901,2710.3,2710.1,0.36904]
[1729459244047,1.35698258,2710.4,2710.1,0.36904]
[1729459244260,0.76051,2710.4,2710.1,0.36904]
[1729459244456,0.3915,2710.4,2710.2,0.36902]
[1729459244664,0.7605,2710.4,2710.2,0.36902]
[1729459244960,0.7605,2710.4,2710.1,0.36903]
[1729459245653,3.5993,2710.4,2710.1,0.36904]
[1729459245860,3.9683,2710.4,2710.1,0.36904]
[1729459246063,3.9683,2710.4,2710.0,0.7951]